bitfinex/quotes_ETHUSD_20230403
["timestamp","ask_amount","ask_price","bid_price","bid_amount"]
[1680491333904,0.11000001,1775.5,1775.2,5.00271728]
[1680491335070,0.11000001,1775.5,1775.2,3.17140728]
[1680491335272,0.11000001,1775.5,1775.1,1.0249095]
[1680491335594,0.11000001,1775.5,1775.1,1.3045795]
[1680491336169,0.11000001,1775.5,1775.3,0.00362804]
[1680491337067,0.11000001,1775.5,1775.3,0.28164]
[1680491340414,0.06000001,1775.5,1775.3,1.84492]
[1680491340610,0.06000001,1775.5,1775.4,0.466112]
[1680491340862,0.06000001,1775.5,1775.4,1.029362]
[1680491343122,0.06000001,1775.5,1775.4,0.466112]
[1680491343444,0.06000001,1775.5,1775.4,0.28162]
[1680491345142,0.06000001,1775.5,1775.4,0.84487]
[1680491346365,0.06000001,1775.5,1775.4,1.36466464]
[1680491347616,0.06000001,1775.5,1775.4,0.51979464]
[1680491348516,0.06000001,1775.5,1775.2,0.28165]
[1680491348720,0.56000001,1775.5,1775.1,0.28166]
[1680491348900,0.06000001,1775.5,1775.1,3.06942728]
[1680491349571,0.20727901,1775.5,1775.0,0.008]
[1680491349774,0.20727901,1775.5,1775.0,3.06944728]
[1680491350013,1.61707901,1775.5,1774.9,0.03091209]
[1680491350218,0.5,1775.4,1774.9,2.81067937]
[1680491350526,0.5,1775.4,1774.9,0.31061209]
[1680491350527,0.64082,1775.4,1774.9,0.31061209]
[1680491350686,0.64082,1775.4,1774.9,0.02291209]
[1680491350687,1.1623109,1775.4,1774.9,0.02291209]
[1680491351245,4.1623109,1775.4,1774.9,0.02291209]
[1680491352097,5.4353109,1775.4,1774.9,0.02291209]
[1680491352297,5.4373109,1775.4,1774.9,0.02291209]
[1680491352845,1.273,1775.3,1774.9,0.02291209]
[1680491353593,4.273,1775.3,1774.9,0.02291209]
[1680491353800,1.273,1775.3,1774.9,0.02291209]
[1680491354018,1.57938909,1775.3,1774.8,0.28172]
[1680491354337,1.57938909,1775.3,1774.8,3.06948728]
[1680491354490,1.41382,1775.3,1774.8,3.07548728]
[1680491354692,1.273,1775.3,1774.8,3.07548728]
[1680491354893,1.273,1775.3,1774.8,3.07348728]
[1680491355095,3.49088901,1775.5,1774.8,3.63692728]
[1680491355096,4.61907901,1775.5,1774.8,3.63692728]
[1680491355296,4.47627901,1775.5,1774.8,3.63292728]
[1680491355614,3.0,1775.4,1774.9,0.64498273]
[1680491355813,1.62607901,1775.5,1774.9,0.64498273]
[1680491355992,1.61707901,1775.5,1774.9,0.64498273]
[1680491356625,0.20727901,1775.5,1774.9,5.26916001]
[1680491356835,0.06000001,1775.5,1774.9,5.27116001]
[1680491357549,0.06000001,1775.5,1774.9,5.2940721]
[1680491358447,0.06000001,1775.5,1775.0,2.78776728]
[1680491358607,0.06000001,1775.5,1775.1,0.56043673]
[1680491359316,0.06000001,1775.5,1775.1,1.12377673]
[1680491361417,0.06000001,1775.5,1775.2,0.52267057]
[1680491361618,0.06000001,1775.5,1775.3,0.28164]
[1680491362252,0.06000001,1775.5,1775.2,0.80072162]
[1680491362458,0.06000001,1775.5,1775.4,0.52181999]
[1680491366856,1.46980001,1775.5,1775.4,0.52181999]
[1680491367061,1.64564001,1775.5,1775.4,0.52181999]
[1680491367473,1.64564001,1775.5,1774.9,0.28169]
[1680491367683,1.269,1775.4,1774.9,3.06945728]
[1680491367889,4.269,1775.4,1774.9,3.06945728]
[1680491368048,4.276,1775.4,1774.9,3.06945728]
[1680491368245,4.276,1775.4,1775.0,0.30694573]
[1680491368494,1.276,1775.4,1775.0,1.11215847]
[1680491368966,1.274,1775.4,1775.0,1.11215847]
[1680491369171,1.276,1775.4,1775.0,1.11215847]
[1680491369575,1.276,1775.4,1775.0,0.83047847]
[1680491369786,1.269,1775.4,1775.0,0.83047847]
[1680491370370,1.269,1775.4,1775.0,0.52353274]
[1680491370566,1.40981,1775.4,1775.0,0.52353274]
[1680491370767,1.269,1775.4,1775.0,0.52353274]
[1680491372300,4.65865001,1775.5,1775.0,0.52353274]
[1680491372444,4.65665001,1775.5,1775.0,0.52353274]
[1680491373298,0.465665,1775.4,1775.0,0.52353274]
[1680491374508,8.04832812,1775.5,1775.0,0.52353274]
[1680491374823,0.58967811,1775.3,1775.0,0.52353274]
[1680491375307,1.56758492,1775.3,1775.0,0.52353274]
[1680491375767,1.56758492,1775.3,1775.0,0.80521274]
[1680491377203,0.58967811,1775.2,1775.0,0.80521274]
[1680491377447,0.58967811,1775.2,1775.0,0.52353274]
[1680491379008,1.47419528,1775.3,1775.0,0.52353274]
[1680491379351,0.58967811,1775.2,1775.0,0.52353274]
[1680491379895,1.47419528,1775.3,1775.0,0.52353274]
[1680491380101,2.45210193,1775.3,1775.0,0.52353274]
[1680491381352,5.55298775,1775.3,1775.0,0.52353274]
[1680491381513,1.56758476,1775.2,1775.0,0.52353274]
[1680491381903,1.70840476,1775.2,1775.0,0.52353274]
[1680491382258,2.00349811,1775.2,1775.0,0.52353274]
[1680491382406,1.56764027,1775.1,1774.7,0.002]
[1680491382606,5.28310301,1775.1,1774.6,0.28174]
[1680491382835,4.30714085,1775.1,1774.6,3.06950728]
[1680491383044,4.30514085,1775.1,1774.6,3.06950728]
[1680491383504,3.58967811,1775.1,1774.7,0.45878098]
[1680491383705,3.59133198,1775.1,1774.7,0.46078098]
[1680491383936,3.58633198,1775.1,1774.7,0.46278098]
[1680491384340,3.58633198,1775.1,1774.7,0.45878098]
[1680491384517,4.3158289,1775.1,1774.7,0.45878098]
[1680491385013,4.3158289,1775.1,1774.7,0.48169564]
[1680491387712,1.269,1775.0,1774.7,0.45878098]
[1680491387914,0.64085,1774.9,1774.7,0.45878098]
[1680491388215,1.441705,1774.9,1774.7,0.45878098]
[1680491388396,1.441705,1774.9,1774.3,0.28779]
[1680491388603,3.941705,1774.9,1774.3,0.28779]
[1680491389805,3.941705,1774.9,1774.3,0.006]
[1680491390432,3.660005,1774.9,1774.3,0.2878]
[1680491390726,3.660005,1774.9,1774.3,3.28751028]
[1680491391231,3.660005,1774.9,1774.3,3.31043011]
[1680491391389,3.660005,1774.9,1774.4,0.57905133]
[1680491391726,1.41388,1774.5,1774.4,0.57905133]
[1680491391931,0.14088,1774.6,1774.4,0.57905133]
[1680491392305,0.14088,1774.6,1774.2,0.006]
[1680491393901,0.14088,1774.6,1774.2,0.004]
[1680491394131,0.360442,1774.6,1774.2,0.004]
[1680491394436,0.360442,1774.6,1774.2,0.006]
[1680491395290,0.14088,1774.6,1774.2,0.006]
[1680491397063,0.14088,1774.6,1774.2,0.004]
[1680491399257,0.14088,1774.6,1774.2,0.006]
[1680491399457,1.273,1774.5,1774.2,0.006]
[1680491399613,1.55477,1774.5,1774.2,0.006]
[1680491400020,0.155477,1774.4,1773.9,0.38785]
[1680491400180,1.273,1774.5,1773.9,3.17561728]
[1680491400484,3.002,1774.6,1774.1,0.28182]
[1680491400687,3.0,1774.6,1774.1,3.07558728]
[1680491400837,4.99264785,1774.6,1774.1,3.07558728]
[1680491401182,5.13351785,1774.6,1774.1,3.07558728]
[1680491401337,5.13551785,1774.6,1774.1,3.07558728]
[1680491404158,5.13551785,1774.6,1774.1,2.79376728]
[1680491404915,5.13551785,1774.6,1774.1,0.006]
[1680491405062,1.273,1774.2,1774.0,0.006]
[1680491405266,1.41391,1774.2,1773.9,0.106]
[1680491405487,1.4139,1774.2,1773.9,0.106]
[1680491405691,2.165281,1774.2,1773.9,0.1]
[1680491406407,2.165281,1774.2,1774.0,0.44814387]
[1680491407703,2.16128542,1774.2,1774.0,0.44814387]
[1680491408206,2.66128542,1774.2,1774.0,0.44814387]
[1680491408357,3.68886854,1774.1,1774.0,0.44814387]
[1680491408553,4.18886854,1774.1,1774.0,0.44814387]
[1680491410273,4.18886854,1774.1,1774.0,0.45182182]
[1680491411107,3.68886854,1774.1,1774.0,0.45182182]
[1680491411318,0.68886854,1774.1,1774.0,0.45182182]
[1680491411489,1.18886854,1774.1,1774.0,0.45182182]
[1680491411677,4.18886854,1774.1,1774.0,0.45182182]
[1680491413916,3.68886854,1774.1,1774.0,0.45182182]
[1680491414110,0.42274,1774.1,1774.0,0.45182182]
[1680491414422,3.42274,1774.1,1774.0,0.45182182]
[1680491416003,0.42274,1774.1,1774.0,0.45182182]
[1680491416203,3.42274,1774.1,1774.0,0.45182182]
[1680491417020,0.42274,1774.1,1774.0,0.45182182]
[1680491417184,0.93907154,1774.1,1774.0,0.45182182]
[1680491417383,1.43907154,1774.1,1774.0,0.45182182]
[1680491417719,4.43907154,1774.1,1774.0,0.45182182]
[1680491418511,3.93907154,1774.1,1774.0,0.45182182]
[1680491419297,5.21207154,1774.1,1774.0,0.45182182]
[1680491419506,8.00183882,1774.1,1774.0,0.45182182]
[1680491420232,8.00183882,1774.1,1774.0,0.44814387]
[1680491420428,8.00183882,1774.1,1773.9,0.1]
[1680491420629,2.07318388,1774.0,1773.9,0.1]
[1680491420815,5.49594388,1774.0,1773.9,0.1]
[1680491421141,5.49794388,1774.0,1773.9,0.1]
[1680491421344,5.49794388,1774.0,1773.9,0.45186597]
[1680491421944,8.28571116,1774.0,1773.9,0.45186597]
[1680491422798,8.51571116,1774.0,1773.9,0.45186597]
[1680491423427,8.51571116,1774.0,1773.9,0.1]
[1680491425249,9.78871116,1774.0,1773.9,0.1]
[1680491425843,21.06271116,1774.0,1773.9,0.1]
[1680491426201,21.34428883,1774.0,1773.9,0.1]
[1680491426598,2.13442888,1773.9,1773.8,0.1]
[1680491426802,25.36572425,1773.9,1773.8,0.1]
[1680491427101,25.64930192,1773.9,1773.8,0.1]
[1680491428848,24.37630192,1773.9,1773.8,0.1]
[1680491431143,23.37860383,1773.9,1773.8,0.1]
[1680491431338,21.68770616,1773.9,1773.8,0.1]
[1680491433354,21.45770616,1773.9,1773.8,0.1]
[1680491433917,21.73928383,1773.9,1773.8,0.1]
[1680491435466,19.60485495,1773.9,1773.8,0.1]
[1680491436231,18.75955728,1773.9,1773.8,0.1]
[1680491436861,18.47769728,1773.9,1773.8,0.1]
[1680491437026,15.68993,1773.9,1773.8,0.1]
[1680491438338,15.97179,1773.9,1773.8,0.76237402]
[1680491439474,14.41693,1773.9,1773.8,0.76237402]
[1680491441866,14.69879,1773.9,1773.8,0.76237402]
[1680491443468,18.95643628,1773.9,1773.8,0.76237402]
[1680491443674,19.0982268,1773.9,1773.8,0.76237402]
[1680491445561,19.0982268,1773.9,1773.8,0.10368563]
[1680491445759,20.3712268,1773.9,1773.8,0.10368563]
[1680491445972,20.88280447,1773.9,1773.8,0.10368563]
[1680491446130,20.88280447,1773.9,1773.8,0.1]
[1680491449481,22.4512655,1773.9,1773.8,0.1]
[1680491451038,22.4512655,1773.9,1773.8,0.09703316]
[1680491455964,23.33578267,1773.9,1773.8,0.09703316]
[1680491457955,22.74611697,1773.9,1773.8,0.09703316]
[1680491460217,23.92547319,1773.9,1773.8,0.09703316]
[1680491460548,25.57878839,1773.9,1773.8,0.09703316]
[1680491460844,24.39943217,1773.9,1773.8,0.09703316]
[1680491461690,23.48563954,1773.9,1773.8,0.09703316]
[1680491461869,23.48563954,1773.9,1773.7,0.00296684]
[1680491462074,4.3560079,1773.8,1773.7,0.00296684]
[1680491462387,1.56824062,1773.8,1773.7,0.00296684]
[1680491462571,1.11973533,1773.8,1773.7,0.00296684]
[1680491462889,0.14094,1773.8,1773.7,0.00296684]
[1680491463686,13.80148101,1773.9,1773.7,0.00296684]
[1680491463897,3.0,1773.8,1773.7,0.00296684]
[1680491464097,3.14094,1773.8,1773.7,0.00296684]
[1680491465551,3.14094,1773.8,1773.6,0.05296684]
[1680491466452,3.14094,1773.8,1773.7,0.60704485]
[1680491467107,3.0,1773.8,1773.7,0.60704485]
[1680491467916,2.70755959,1773.8,1773.7,0.60704485]
[1680491468802,2.70755959,1773.8,1773.7,0.67304602]
[1680491471957,11.276,1773.9,1773.7,0.67304602]
[1680491472388,11.276,1773.9,1773.7,0.60704485]
[1680491475327,3.0,1773.8,1773.7,0.60704485]
[1680491475529,3.14094,1773.8,1773.7,0.60704485]
[1680491481511,3.42282,1773.8,1773.7,0.60704485]
[1680491482708,3.14094,1773.8,1773.7,0.60704485]
[1680491483137,3.0,1773.8,1773.7,0.60704485]
[1680491488044,3.0,1773.8,1773.7,1.94793891]
[1680491488244,3.0,1773.8,1773.7,2.22982891]
[1680491488458,11.276,1773.9,1773.7,2.23582891]
[1680491488758,11.276,1773.9,1773.8,1.273]
[1680491488971,11.276,1773.9,1773.8,1.56088]
[1680491489112,11.276,1773.9,1773.8,2.84094089]
[1680491489519,11.276,1773.9,1773.8,3.41013594]
[1680491489768,11.27480633,1773.9,1773.8,3.40413594]
[1680491490069,11.27280633,1773.9,1773.8,3.40413594]
[1680491490965,11.27280633,1773.9,1773.8,3.41013594]
[1680491491257,11.27280633,1773.9,1773.8,3.97389594]
[1680491491658,11.27280633,1773.9,1773.8,3.41013594]
[1680491494036,11.27280633,1773.9,1773.8,3.12825594]
[1680491494229,11.27280633,1773.9,1773.8,3.41013594]
[1680491500967,11.27280633,1773.9,1773.8,3.12825594]
[1680491501169,11.27280633,1773.9,1773.8,3.41013594]
[1680491501699,11.27280633,1773.9,1773.8,3.12825594]
[1680491502058,11.27280633,1773.9,1773.8,2.13713594]
[1680491502655,11.27280633,1773.9,1773.8,2.70089594]
[1680491505007,11.27280633,1773.9,1773.8,3.96189594]
[1680491505506,11.27280633,1773.9,1773.8,3.39813594]
[1680491507192,11.27280633,1773.9,1773.8,3.96189594]
[1680491510203,11.26889059,1773.9,1773.8,3.95589594]
[1680491510589,11.26889059,1773.9,1773.8,3.95989594]
[1680491510791,11.26889059,1773.9,1773.8,3.95589594]
[1680491511314,11.26889059,1773.9,1773.8,6.74366322]
[1680491511472,11.26889059,1773.9,1773.8,6.75166322]
[1680491513017,11.26889059,1773.9,1773.8,5.49066322]
[1680491514817,11.26889059,1773.9,1773.8,6.76366322]
[1680491515019,11.26889059,1773.9,1773.8,6.99366322]
[1680491515619,11.26889059,1773.9,1773.8,7.86972622]
[1680491519250,11.26889059,1773.9,1773.8,13.79972622]
[1680491520152,11.26889059,1773.9,1773.8,22.0897819]
[1680491521253,11.26889059,1773.9,1773.8,25.0897819]
[1680491522428,10.32655157,1773.9,1773.8,26.3627819]
[1680491522634,10.32655157,1773.9,1773.8,26.66955211]
[1680491523033,9.5494189,1773.9,1773.8,26.66955211]
[1680491523560,7.16957527,1773.9,1773.8,26.66955211]
[1680491525470,7.16957527,1773.9,1773.8,27.84775493]
[1680491525620,7.16957527,1773.9,1773.8,26.57475493]
[1680491526859,7.16957527,1773.9,1773.8,25.39655211]
[1680491527656,7.16957527,1773.9,1773.8,26.57460906]
[1680491528164,7.16957527,1773.9,1773.8,25.39655211]
[1680491528459,7.16957527,1773.9,1773.8,26.57459893]
[1680491528761,7.16957527,1773.9,1773.8,25.39655211]
[1680491529425,0.002,1773.9,1773.8,26.06300394]
[1680491529621,0.007,1774.7,1774.4,1.0]
[1680491529823,0.007,1774.7,1774.5,4.86012728]
[1680491530560,0.007,1774.7,1774.6,0.47647424]
[1680491530863,0.007,1774.7,1774.6,1.32172424]
[1680491539990,0.007,1774.7,1774.6,4.10949152]
[1680491541398,0.007,1774.7,1774.6,4.28938042]
[1680491541694,0.007,1774.7,1774.6,5.12527919]
[1680491541879,0.007,1774.7,1774.6,5.12727919]
[1680491542992,0.007,1774.7,1774.6,5.35727919]
[1680491554237,0.11000001,1774.9,1774.6,5.35727919]
[1680491554512,0.11000001,1774.9,1774.7,2.78776728]
[1680491554711,0.11000001,1774.9,1774.8,1.12393673]
[1680491554916,0.11000001,1774.9,1774.8,3.91170401]
[1680491555225,0.11000001,1774.9,1774.8,3.90797789]
[1680491556388,0.11000001,1774.9,1774.8,4.52112856]
[1680491556610,0.11000001,1774.9,1774.8,4.75112856]
[1680491556981,0.11000001,1774.9,1774.8,5.25112856]
[1680491557182,0.11000001,1774.9,1774.8,5.25312856]
[1680491558417,0.11000001,1774.9,1774.8,4.75312856]
[1680491558619,0.11000001,1774.9,1774.8,4.75112856]
[1680491558844,0.11000001,1774.9,1774.8,5.25112856]
[1680491559043,0.11000001,1774.9,1774.8,5.27604193]
[1680491560306,0.11000001,1774.9,1774.8,4.77604193]
[1680491560537,0.11000001,1774.9,1774.8,4.77404193]
[1680491560849,0.11000001,1774.9,1774.8,5.27404193]
[1680491561031,0.11000001,1774.9,1774.8,4.77604193]
[1680491561229,0.11000001,1774.9,1774.8,5.32583941]
[1680491561433,0.11000001,1774.9,1774.8,5.32783941]
[1680491567397,0.11000001,1774.9,1774.8,4.77604193]
[1680491567601,0.11000001,1774.9,1774.8,4.24607795]
[1680491578393,0.10733361,1774.9,1774.8,4.24607795]
[1680491580970,0.10733361,1774.9,1774.8,5.12946945]
[1680491581213,0.10733361,1774.9,1774.8,5.13146945]
[1680491585589,0.10733361,1774.9,1774.8,5.36146945]
[1680491585782,0.10733361,1774.9,1774.8,8.17562762]
[1680491586034,0.10733361,1774.9,1774.8,7.29223612]
[1680491586183,0.10733361,1774.9,1774.8,12.55403612]
[1680491587746,0.10733361,1774.9,1774.8,18.48403612]
[1680491594024,0.10733361,1774.9,1774.8,19.95692501]
[1680491594225,0.10733361,1774.9,1774.8,18.48403612]
[1680491600888,0.10401303,1774.9,1774.8,18.48403612]
[1680491607062,0.10401303,1774.9,1774.8,19.95692501]
[1680491607702,0.10401303,1774.9,1774.8,18.48403612]
[1680491609613,0.10401303,1774.9,1774.8,19.95692501]
[1680491610296,0.10401303,1774.9,1774.8,18.48403612]
[1680491612016,0.10401303,1774.9,1774.8,19.95692501]
[1680491612168,0.10401303,1774.9,1774.8,18.48403612]
[1680491612721,0.10401303,1774.9,1774.8,19.95692501]
[1680491614907,0.10401303,1774.9,1774.8,18.77906967]
[1680491623128,0.10401303,1774.9,1774.8,20.49240789]
[1680491623811,0.10401303,1774.9,1774.8,19.019519]
[1680491625221,0.10133573,1774.9,1774.8,19.019519]
[1680491629650,0.10133573,1774.9,1774.8,20.78577991]
[1680491635119,0.10133573,1774.9,1774.8,11.14618078]
[1680491635455,0.10133573,1774.9,1774.8,9.50987795]
[1680491635678,0.10133573,1774.9,1774.8,4.24807795]
[1680491635830,0.10133573,1774.9,1774.8,4.24607795]
[1680491636459,0.10133573,1774.9,1774.8,4.47607795]
[1680491648340,0.10133573,1774.9,1774.8,6.24233886]
[1680491648582,0.09843991,1774.9,1774.8,7.57735421]
[1680491654771,0.09843991,1774.9,1774.8,5.8110933]
[1680491654959,0.09843991,1774.9,1774.8,4.88045635]
[1680491654960,0.81443991,1774.9,1774.8,4.88045635]
[1680491655165,0.81443991,1774.9,1774.8,5.16017635]
[1680491655365,0.81443991,1774.9,1774.8,5.16217635]
[1680491657101,0.81443991,1774.9,1774.8,6.34396972]
[1680491657297,0.81443991,1774.9,1774.8,3.55620244]
[1680491657487,0.81443991,1774.9,1774.8,3.55420244]
[1680491658399,0.81443991,1774.9,1774.8,2.07666404]
[1680491660387,0.81443991,1774.9,1774.8,5.42787132]
[1680491660574,0.81443991,1774.9,1774.8,4.86643132]
[1680491660779,0.09843991,1774.9,1774.8,4.86443132]
[1680491661698,0.09843991,1774.9,1774.8,5.42787132]
[1680491661902,0.09843991,1774.9,1774.8,6.64635732]
[1680491662103,0.09843991,1774.9,1774.8,6.34942705]
[1680491663782,0.09843991,1774.9,1774.8,7.82696545]
[1680491663995,0.09843991,1774.9,1774.8,6.34942705]
[1680491665215,0.09843991,1774.9,1774.8,5.78598705]
[1680491666320,0.09843991,1774.9,1774.8,5.09524608]
[1680491666811,0.09843991,1774.9,1774.8,4.81352608]
[1680491667027,0.09843991,1774.9,1774.8,4.81152608]
[1680491667330,0.09843991,1774.9,1774.8,5.09324608]
[1680491667639,0.09843991,1774.9,1774.8,5.09524608]
[1680491669834,0.09843991,1774.9,1774.8,10.81116199]
[1680491670006,3.991e-05,1774.9,1774.8,22.01713477]
[1680491670211,3.991e-05,1774.9,1774.8,20.25087386]
[1680491670433,3.991e-05,1774.9,1774.8,9.32087386]
[1680491670611,3.991e-05,1774.9,1774.8,8.08997518]
[1680491671002,3.991e-05,1774.9,1774.8,6.32687386]
[1680491671614,3.991e-05,1774.9,1774.8,8.08997518]
[1680491671926,3.991e-05,1774.9,1774.8,6.32087386]
[1680491672121,3.991e-05,1774.9,1774.8,7.79562933]
[1680491672322,3.991e-05,1774.9,1774.8,6.32087386]
[1680491672497,3.991e-05,1774.9,1774.8,6.12082225]
[1680491678852,3.991e-05,1774.9,1774.8,7.59529818]
[1680491681857,3.991e-05,1774.9,1774.8,2.17129499]
[1680491682067,3.991e-05,1774.9,1774.8,2.43783587]
[1680491682213,3.991e-05,1774.9,1774.8,5.22560315]
[1680491682415,3.991e-05,1774.9,1774.8,5.22760315]
[1680491683663,3.991e-05,1774.9,1774.8,6.70207908]
[1680491683960,3.991e-05,1774.9,1774.8,6.70202081]
[1680491689259,3.991e-05,1774.9,1774.8,7.97646289]
[1680491689427,3.991e-05,1774.9,1774.8,8.20646289]
[1680491691372,3.991e-05,1774.9,1774.8,7.02694435]
[1680491691575,0.11000001,1775.0,1774.9,0.50258187]
[1680491691754,0.11000001,1775.0,1774.9,5.94169218]
[1680491691929,0.11000001,1775.0,1774.9,6.87726311]
[1680491692546,0.11000001,1775.0,1774.9,7.51997862]
[1680491695363,0.11000001,1775.0,1774.9,8.99445455]
[1680491696742,0.11000001,1775.0,1774.9,14.92445455]
[1680491697153,0.11000001,1775.0,1774.9,14.92845455]
[1680491697352,0.11000001,1775.0,1774.9,14.92445455]
[1680491698244,0.11000001,1775.0,1774.9,13.74504152]
[1680491698757,0.11000001,1775.0,1774.9,18.65854152]
[1680491700503,0.11000001,1775.0,1774.9,17.18406559]
[1680491700836,0.11000001,1775.0,1774.9,20.90006559]
[1680491701144,0.11000001,1775.0,1774.9,30.29726559]
[1680491702695,0.11000001,1775.0,1774.9,30.29434738]
[1680491706624,0.06858068,1775.0,1774.9,30.29434738]
[1680491707707,0.02750651,1775.0,1774.9,30.29434738]
[1680491708634,0.11000001,1775.3,1774.9,30.29434738]
[1680491708783,0.11000001,1775.3,1775.2,0.88384243]
[1680491708984,0.11000001,1775.3,1775.2,5.64319971]
[1680491709304,0.11000001,1775.3,1775.2,5.64519971]
[1680491709698,0.06961239,1775.3,1775.2,6.04907595]
[1680491710692,0.02956133,1775.3,1775.2,6.04907595]
[1680491711032,0.02956133,1775.3,1775.2,7.2549592]
[1680491711586,0.06000001,1775.5,1775.2,7.2549592]
[1680491711905,0.06000001,1775.5,1775.4,0.28162]
[1680491712130,0.06000001,1775.5,1775.4,3.06938728]
[1680491712630,0.06000001,1775.5,1775.4,3.46333013]
[1680491716549,0.99769809,1775.3,1774.9,1.16553243]
[1680491716850,0.716,1775.1,1774.9,3.67160971]
[1680491717649,0.716,1775.1,1775.0,0.30861875]
[1680491731884,0.00508255,1775.3,1775.0,9.87145603]
[1680491732189,0.06508256,1775.5,1775.2,0.84496]
[1680491732331,0.06508256,1775.5,1775.2,3.06941728]
[1680491732531,0.06508256,1775.5,1775.1,0.52623491]
[1680491732532,0.716,1775.4,1775.1,0.52623491]
[1680491732732,0.716,1775.4,1775.1,3.31200219]
[1680491732992,0.7120713,1775.4,1775.1,3.59767219]
[1680491733288,0.7120713,1775.4,1775.1,3.59967219]
[1680491736188,0.77400001,1775.5,1775.1,3.59967219]
[1680491737251,0.77400001,1775.5,1775.1,5.15713173]
[1680491737448,0.77400001,1775.5,1775.1,5.15913173]
[1680491738763,0.77400001,1775.5,1775.3,0.84492]
[1680491738967,0.06000001,1775.5,1775.3,3.63268728]
[1680491739289,0.06000001,1775.5,1775.4,0.64488873]
[1680491739583,0.06000001,1775.5,1775.4,1.16805373]
[1680491739951,0.06000001,1775.5,1775.4,1.73130373]
[1680491744649,0.06000001,1775.5,1775.4,4.51907101]
[1680491748728,0.06000001,1775.5,1775.4,4.15580228]
[1680491756648,0.05784122,1775.5,1775.4,4.15580228]
[1680491756794,0.05784122,1775.5,1775.4,4.38580228]
[1680491759638,0.05784122,1775.5,1775.4,3.59255228]
[1680491759937,0.05784122,1775.5,1775.4,4.15580228]
[1680491761630,0.05784122,1775.5,1775.4,4.68483551]
[1680491775521,0.05784122,1775.5,1775.4,0.804785]
[1680491775740,0.77384122,1775.5,1775.4,0.804785]
[1680491777508,0.62384122,1775.5,1775.4,0.804785]
[1680491782157,0.716,1775.6,1775.4,0.804785]
[1680491782963,11.264,1775.5,1775.4,0.804785]
[1680491783164,11.266,1775.5,1775.4,0.804785]
[1680491785353,11.266,1775.5,1775.4,1.368035]
[1680491785554,11.266,1775.5,1775.4,1.5054385]
[1680491787144,11.266,1775.5,1775.4,4.29320578]
[1680491787370,11.266,1775.5,1775.4,4.29920578]
[1680491796317,11.266,1775.5,1775.4,4.16180228]
[1680491797720,11.266,1775.5,1775.4,0.523165]
[1680491798762,15.98278064,1775.5,1775.4,0.523165]
[1680491798936,17.67652312,1775.5,1775.4,0.523165]
[1680491799096,16.69878064,1775.5,1775.4,0.523165]
[1680491799299,18.64523265,1775.5,1775.4,0.523165]
[1680491799640,18.64523265,1775.5,1775.1,0.28166]
[1680491799812,0.716,1775.3,1775.1,0.28166]
[1680491800140,11.264,1775.2,1775.1,0.28166]
[1680491800461,11.266,1775.2,1775.1,0.28166]
[1680491804849,11.27108255,1775.2,1775.1,0.28166]
[1680491805566,11.266,1775.2,1775.1,0.28166]
[1680491806465,11.266,1775.2,1775.1,3.71727128]
[1680491806961,11.266,1775.2,1775.1,3.72127128]
[1680491807335,11.266,1775.2,1775.1,3.72327128]
[1680491811469,11.266,1775.2,1775.1,4.26402394]
[1680491813072,11.266,1775.2,1775.1,4.28693344]
[1680491813284,11.266,1775.2,1775.1,5.17077587]
[1680491813570,11.266,1775.2,1775.1,5.17277587]
[1680491813921,11.266,1775.2,1775.1,4.28893344]
[1680491814121,11.266,1775.2,1775.1,5.17077587]
[1680491814321,11.266,1775.2,1775.1,5.17277587]
[1680491815553,11.27108255,1775.2,1775.1,5.17077587]
[1680491816073,11.26392849,1775.2,1775.1,5.69739001]
[1680491816368,11.26392849,1775.2,1775.1,8.69739001]
[1680491822302,11.26392849,1775.2,1775.1,9.41339001]
[1680491826303,11.26392849,1775.2,1775.1,8.69739001]
[1680491828272,11.26392849,1775.2,1775.1,8.67448051]
[1680491828479,11.26392849,1775.2,1775.1,5.06422252]
[1680491828707,11.26901104,1775.2,1775.1,5.05822252]
[1680491828927,11.26901104,1775.2,1775.1,4.17551994]
[1680491829099,11.26901104,1775.2,1775.1,4.17351994]
[1680491830036,11.26901104,1775.2,1775.1,1.38575266]
[1680491836486,11.26901104,1775.2,1775.1,0.82241266]
[1680491838786,11.26700233,1775.2,1775.1,0.82241266]
[1680491839101,11.26191978,1775.2,1775.1,0.82241266]
[1680491853051,11.26191978,1775.2,1775.1,0.54075266]
[1680491853344,12.38862001,1775.2,1775.1,0.54075266]
[1680491854511,12.38862001,1775.2,1774.9,1.17039258]
[1680491854835,11.26191978,1775.2,1774.9,3.95215986]
[1680491855022,11.26191978,1775.2,1774.9,3.95815986]
[1680491855194,11.26191978,1775.2,1774.9,1.17040258]
[1680491855544,11.26191978,1775.2,1775.0,0.49709655]
[1680491858517,11.26191978,1775.2,1774.8,2.34885915]
[1680491858715,12.46510256,1775.2,1774.8,2.34285915]
[1680491859241,12.46002001,1775.2,1774.8,2.34285915]
[1680491859542,12.46002001,1775.2,1774.9,0.49915293]
[1680491859744,12.46002001,1775.2,1774.9,0.78085293]
[1680491861572,12.46002001,1775.2,1774.9,0.49915293]
[1680491861744,1.246002,1775.1,1774.9,0.49915293]
[1680491862538,1.246002,1775.1,1774.8,0.2817]
[1680491862752,1.246002,1775.1,1774.8,0.27806853]
[1680491864053,0.714,1775.0,1774.6,0.88470258]
[1680491864237,0.716,1774.7,1774.5,0.88470258]
[1680491864437,0.716,1774.7,1774.5,0.28176]
[1680491864438,11.25991978,1774.6,1774.5,0.28176]
[1680491864751,11.26191978,1774.6,1774.4,1.72803258]
[1680491864931,11.26191978,1774.6,1774.4,0.84533]
[1680491865238,12.46022001,1774.6,1774.4,0.28177]
[1680491868200,12.46022001,1774.6,1774.3,1.82807258]
[1680491868490,12.46022001,1774.6,1774.3,4.61583986]
[1680491868668,12.46022001,1774.6,1774.3,4.61983986]
[1680491869055,12.46022001,1774.6,1774.3,3.73713728]
[1680491869258,12.46022001,1774.6,1774.3,3.73313728]
[1680491869993,12.46022001,1774.6,1774.3,3.16954728]
[1680491870221,1.246022,1774.5,1774.3,2.88776728]
[1680491870403,1.246022,1774.5,1774.3,0.1]
[1680491870769,1.959022,1774.5,1774.3,0.1]
[1680491870979,1.959022,1774.5,1774.3,0.3818]
[1680491871200,1.959022,1774.5,1774.3,0.1]
[1680491871400,0.1959022,1774.4,1774.3,0.1]
[1680491871581,1.959022,1774.5,1774.4,0.59356953]
[1680491872470,1.959022,1774.5,1774.3,0.1]
[1680491872695,1.959022,1774.5,1774.3,0.38179]
[1680491872896,1.246022,1774.5,1774.3,0.38179]
[1680491877261,11.26700233,1774.6,1774.3,0.38179]